[Event "Titled Tuesday Blitz August 24 2021"]
[White "Maevsky, Nikolay"]
[Black "Anuj Shrivatri"]
[WhiteFideId "4198220"]
[BlackFideId "35070924"]
[WhiteElo "2582"]
[BlackElo "2723"]
[Result "1-0"]
[Round "08"]
[TimeControl "180+1"]
[Date "2021.08.24"]
[WhiteClock "0:00:02"]
[BlackClock "0:00:13"]

1. d4 {[%clk 0:02:52]}  Nf6 {[%clk 0:02:59]} 2. Nf3 {[%clk 0:02:51]}  g6 {[%clk 0:02:59]} 3. c4 {[%clk 0:02:51]}  Bg7 {[%clk 0:03:00]} 4. Nc3 {[%clk 0:02:51]}  O-O {[%clk 0:03:01]} 5. e4 {[%clk 0:02:52]}  d6 {[%clk 0:03:01]} 6. Be2 {[%clk 0:02:52]}  e5 {[%clk 0:03:02]} 7. d5 {[%clk 0:02:53]}  a5 {[%clk 0:03:01]} 8. Be3 {[%clk 0:02:52]}  Ng4 {[%clk 0:03:00]} 9. Bg5 {[%clk 0:02:52]}  f6 {[%clk 0:02:58]} 10. Bd2 {[%clk 0:02:52]}  f5 {[%clk 0:02:56]} 11. exf5 {[%clk 0:02:44]}  gxf5 {[%clk 0:02:56]} 12. h3 {[%clk 0:02:44]}  Nf6 {[%clk 0:02:54]} 13. Qc1 {[%clk 0:02:38]}  Na6 {[%clk 0:02:47]} 14. Rg1 {[%clk 0:02:27]}  Nc5 {[%clk 0:02:34]} 15. Qc2 {[%clk 0:02:23]}  Nfe4 {[%clk 0:02:23]} 16. Be3 {[%clk 0:02:17]}  Nxc3 {[%clk 0:02:22]} 17. bxc3 {[%clk 0:02:16]}  e4 {[%clk 0:02:03]} 18. Nd2 {[%clk 0:01:59]}  Bd7 {[%clk 0:01:50]} 19. g3 {[%clk 0:01:56]}  a4 {[%clk 0:01:46]} 20. Rb1 {[%clk 0:01:54]}  b6 {[%clk 0:01:46]} 21. h4 {[%clk 0:01:42]}  Qe7 {[%clk 0:01:40]} 22. Nf1 {[%clk 0:01:32]}  Nd3+ {[%clk 0:01:39]} 23. Bxd3 {[%clk 0:01:29]}  exd3 {[%clk 0:01:39]} 24. Qxd3 {[%clk 0:01:29]}  f4 {[%clk 0:01:40]} 25. gxf4 {[%clk 0:01:29]}  Bf5 {[%clk 0:01:40]} 26. Qd1 {[%clk 0:01:26]}  Bxb1 {[%clk 0:01:40]} 27. Qxb1 {[%clk 0:01:26]}  Kh8 {[%clk 0:01:41]} 28. Qd3 {[%clk 0:01:21]}  Rxf4 {[%clk 0:01:17]} 29. h5 {[%clk 0:01:21]}  Raf8 {[%clk 0:01:14]} 30. Rg2 {[%clk 0:01:20]}  Rh4 {[%clk 0:01:09]} 31. Ng3 {[%clk 0:01:18]}  Be5 {[%clk 0:01:05]} 32. h6 {[%clk 0:00:57]}  Qf7 {[%clk 0:00:51]} 33. Kd2 {[%clk 0:00:35]}  Qg6 {[%clk 0:00:46]} 34. Qxg6 {[%clk 0:00:28]}  hxg6 {[%clk 0:00:46]} 35. Ne2 {[%clk 0:00:19]}  Kh7 {[%clk 0:00:45]} 36. Nd4 {[%clk 0:00:18]}  Rf7 {[%clk 0:00:39]} 37. Ne6 {[%clk 0:00:17]}  Bf6 {[%clk 0:00:37]} 38. Kd3 {[%clk 0:00:14]}  Rh3 {[%clk 0:00:36]} 39. Ke4 {[%clk 0:00:10]}  Re7 {[%clk 0:00:33]} 40. Kd3 {[%clk 0:00:07]}  Rf7 {[%clk 0:00:32]} 41. Ke4 {[%clk 0:00:07]}  Rh5 {[%clk 0:00:28]} 42. Kd3 {[%clk 0:00:06]}  Rf5 {[%clk 0:00:26]} 43. f4 {[%clk 0:00:06]}  Kxh6 {[%clk 0:00:22]} 44. Ke4 {[%clk 0:00:05]}  Kh7 {[%clk 0:00:20]} 45. Bd4 {[%clk 0:00:04]}  Bxd4 {[%clk 0:00:15]} 46. Ng5+ {[%clk 0:00:04]}  Kg7 {[%clk 0:00:14]} 47. Nxf7 {[%clk 0:00:02]}  Bxc3 {[%clk 0:00:14]} 48. Ng5 {[%clk 0:00:02]}  Rf6 {[%clk 0:00:13]} 49. Ne6+ {[%clk 0:00:02]} 1-0


[Site "https://www.chess.com"]

[Event "Titled Tuesday Blitz August 24 2021"]
[White "Maksimovic, Bojan"]
[Black "Kuzubov, Yuriy"]
[WhiteFideId "14408120"]
[BlackFideId "14112906"]
[WhiteElo "2439"]
[BlackElo "2564"]
[Result "1/2-1/2"]
[Round "08"]
[TimeControl "180+1"]
[Date "2021.08.24"]
[WhiteClock "0:00:07"]
[BlackClock "0:00:13"]

1. e4 {[%clk 0:03:00]}  e5 {[%clk 0:03:00]} 2. Nf3 {[%clk 0:03:00]}  Nf6 {[%clk 0:03:00]} 3. Nxe5 {[%clk 0:03:00]}  d6 {[%clk 0:03:01]} 4. Nf3 {[%clk 0:03:01]}  Nxe4 {[%clk 0:03:01]} 5. d4 {[%clk 0:03:01]}  d5 {[%clk 0:03:01]} 6. Bd3 {[%clk 0:03:02]}  Be7 {[%clk 0:03:01]} 7. O-O {[%clk 0:03:01]}  Bf5 {[%clk 0:03:02]} 8. Re1 {[%clk 0:02:55]}  Nc6 {[%clk 0:03:01]} 9. Nbd2 {[%clk 0:02:49]}  Nd6 {[%clk 0:03:01]} 10. Bxf5 {[%clk 0:02:44]}  Nxf5 {[%clk 0:03:02]} 11. c3 {[%clk 0:02:45]}  O-O {[%clk 0:03:02]} 12. Nf1 {[%clk 0:02:45]}  Bd6 {[%clk 0:02:57]} 13. Qb3 {[%clk 0:02:45]}  Rb8 {[%clk 0:02:47]} 14. Bg5 {[%clk 0:02:37]}  Qd7 {[%clk 0:02:39]} 15. Ng3 {[%clk 0:02:24]}  Bxg3 {[%clk 0:02:32]} 16. hxg3 {[%clk 0:02:25]}  f6 {[%clk 0:02:26]} 17. Bf4 {[%clk 0:02:23]}  h5 {[%clk 0:02:08]} 18. Nh4 {[%clk 0:02:02]}  Nfe7 {[%clk 0:02:02]} 19. Bd2 {[%clk 0:01:53]}  g5 {[%clk 0:02:02]} 20. Nf3 {[%clk 0:01:53]}  Nf5 {[%clk 0:01:57]} 21. c4 {[%clk 0:01:37]}  Rfd8 {[%clk 0:01:39]} 22. Bc3 {[%clk 0:01:18]}  Nce7 {[%clk 0:01:34]} 23. cxd5 {[%clk 0:01:13]}  Nxd5 {[%clk 0:01:31]} 24. Nd2 {[%clk 0:01:04]}  Kg7 {[%clk 0:01:14]} 25. Ne4 {[%clk 0:01:03]}  b6 {[%clk 0:01:13]} 26. Qd1 {[%clk 0:00:48]}  Qf7 {[%clk 0:01:07]} 27. Qf3 {[%clk 0:00:43]}  Qg6 {[%clk 0:01:06]} 28. Rad1 {[%clk 0:00:41]}  c6 {[%clk 0:01:03]} 29. Re2 {[%clk 0:00:33]}  Re8 {[%clk 0:01:02]} 30. Rde1 {[%clk 0:00:33]}  Re7 {[%clk 0:00:59]} 31. Nd6 {[%clk 0:00:24]}  Nxd6 {[%clk 0:00:20]} 32. Rxe7+ {[%clk 0:00:24]}  Nxe7 {[%clk 0:00:20]} 33. Rxe7+ {[%clk 0:00:25]}  Nf7 {[%clk 0:00:21]} 34. Qxc6 {[%clk 0:00:20]}  h4 {[%clk 0:00:20]} 35. gxh4 {[%clk 0:00:13]}  Rh8 {[%clk 0:00:20]} 36. hxg5 {[%clk 0:00:07]}  Qxg5 {[%clk 0:00:15]} 37. Qc4 {[%clk 0:00:01]}  Qh5 {[%clk 0:00:14]} 38. f3 {[%clk 0:00:01]}  Qh1+ {[%clk 0:00:13]} 39. Kf2 {[%clk 0:00:01]}  Qh4+ {[%clk 0:00:14]} 40. Kg1 {[%clk 0:00:02]}  Qh2+ {[%clk 0:00:13]} 41. Kf2 {[%clk 0:00:03]}  Qh5 {[%clk 0:00:11]} 42. d5 {[%clk 0:00:03]}  Kg6 {[%clk 0:00:10]} 43. Qg4+ {[%clk 0:00:03]}  Qxg4 {[%clk 0:00:10]} 44. fxg4 {[%clk 0:00:04]}  Rd8 {[%clk 0:00:09]} 45. Rxa7 {[%clk 0:00:04]}  Rxd5 {[%clk 0:00:09]} 46. Rb7 {[%clk 0:00:04]}  Rd6 {[%clk 0:00:10]} 47. Kf3 {[%clk 0:00:04]}  Ng5+ {[%clk 0:00:10]} 48. Kf4 {[%clk 0:00:05]}  Re6 {[%clk 0:00:10]} 49. a4 {[%clk 0:00:05]}  Re4+ {[%clk 0:00:10]} 50. Kg3 {[%clk 0:00:05]}  Rxa4 {[%clk 0:00:10]} 51. Rxb6 {[%clk 0:00:05]}  Ne4+ {[%clk 0:00:11]} 52. Kf3 {[%clk 0:00:06]}  Nxc3 {[%clk 0:00:11]} 53. bxc3 {[%clk 0:00:07]}  Rc4 {[%clk 0:00:11]} 54. Rb3 {[%clk 0:00:07]}  Kg5 {[%clk 0:00:12]} 55. Rb5+ {[%clk 0:00:07]}  Kg6 {[%clk 0:00:12]} 56. Rb3 {[%clk 0:00:08]}  Kg5 {[%clk 0:00:13]} 57. Rb5+ {[%clk 0:00:08]}  Kg6 {[%clk 0:00:13]} 58. Rb3 {[%clk 0:00:07]} 1/2-1/2


[Site "https://www.chess.com"]

[Event "Titled Tuesday Blitz August 24 2021"]
[White "Mikhailovsky, Vladimir"]
[Black "Sharapov, Evgeny"]
[WhiteFideId "34105414"]
[BlackFideId "14103133"]
[WhiteElo "2315"]
[BlackElo "2367"]
[Result "1-0"]
[Round "08"]
[TimeControl "180+1"]
[Date "2021.08.24"]
[WhiteClock "0:00:15"]
[BlackClock "0:01:45"]

1. e4 {[%clk 0:03:00]}  c5 {[%clk 0:02:59]} 2. Nf3 {[%clk 0:03:00]}  d6 {[%clk 0:02:59]} 3. d4 {[%clk 0:03:00]}  cxd4 {[%clk 0:03:00]} 4. Qxd4 {[%clk 0:03:00]}  e5 {[%clk 0:02:58]} 5. Qe3 {[%clk 0:02:54]}  Nf6 {[%clk 0:02:57]} 6. c4 {[%clk 0:02:52]}  Be7 {[%clk 0:02:56]} 7. Nc3 {[%clk 0:02:52]}  O-O {[%clk 0:02:56]} 8. Be2 {[%clk 0:02:53]}  h6 {[%clk 0:02:55]} 9. O-O {[%clk 0:02:53]}  Nbd7 {[%clk 0:02:48]} 10. b3 {[%clk 0:02:44]}  a6 {[%clk 0:02:47]} 11. Rd1 {[%clk 0:02:43]}  Qc7 {[%clk 0:02:47]} 12. Ba3 {[%clk 0:02:33]}  Nc5 {[%clk 0:02:41]} 13. h3 {[%clk 0:02:17]}  b6 {[%clk 0:02:40]} 14. Rac1 {[%clk 0:02:06]}  Bb7 {[%clk 0:02:39]} 15. Nd2 {[%clk 0:01:54]}  Rac8 {[%clk 0:02:35]} 16. Bf3 {[%clk 0:01:40]}  Ne6 {[%clk 0:02:32]} 17. Nd5 {[%clk 0:01:27]}  Qd8 {[%clk 0:02:14]} 18. Nxe7+ {[%clk 0:01:26]}  Qxe7 {[%clk 0:02:13]} 19. Qxb6 {[%clk 0:01:27]}  Nd4 {[%clk 0:02:10]} 20. Bxd6 {[%clk 0:01:00]}  Qe6 {[%clk 0:02:09]} 21. c5 {[%clk 0:01:00]}  Nxf3+ {[%clk 0:02:07]} 22. Nxf3 {[%clk 0:01:00]}  Bxe4 {[%clk 0:02:05]} 23. Bxf8 {[%clk 0:01:00]}  Qf5 {[%clk 0:01:59]} 24. Bxg7 {[%clk 0:00:37]}  Kxg7 {[%clk 0:01:57]} 25. Rc3 {[%clk 0:00:20]}  Nd5 {[%clk 0:01:55]} 26. Rxd5 {[%clk 0:00:20]}  Bxd5 {[%clk 0:01:55]} 27. Qd6 {[%clk 0:00:19]}  e4 {[%clk 0:01:53]} 28. Nd4 {[%clk 0:00:15]}  Qf6 {[%clk 0:01:45]} 29. Rg3+ {[%clk 0:00:15]} 1-0


[Site "https://www.chess.com"]

[Event "Titled Tuesday Blitz August 24 2021"]
[White "Molina, Roberto Junio Brito"]
[Black "Bobkov, Vadim"]
[WhiteFideId "2109450"]
[BlackFideId "34110876"]
[WhiteElo "2402"]
[BlackElo "2117"]
[Result "1-0"]
[Round "08"]
[TimeControl "180+1"]
[Date "2021.08.24"]
[WhiteClock "0:00:07"]
[BlackClock "0:00:01"]

1. d4 {[%clk 0:03:00]}  d5 {[%clk 0:02:59]} 2. c4 {[%clk 0:03:00]}  e6 {[%clk 0:02:59]} 3. Nc3 {[%clk 0:03:00]}  c6 {[%clk 0:03:00]} 4. e3 {[%clk 0:02:59]}  Nf6 {[%clk 0:03:00]} 5. Nf3 {[%clk 0:02:59]}  Nbd7 {[%clk 0:03:00]} 6. Qc2 {[%clk 0:02:59]}  Bd6 {[%clk 0:03:00]} 7. Bd3 {[%clk 0:02:58]}  O-O {[%clk 0:02:58]} 8. O-O {[%clk 0:02:56]}  Qe7 {[%clk 0:02:56]} 9. b3 {[%clk 0:02:48]}  dxc4 {[%clk 0:02:55]} 10. Bxc4 {[%clk 0:02:47]}  e5 {[%clk 0:02:54]} 11. h3 {[%clk 0:02:07]}  exd4 {[%clk 0:01:27]} 12. exd4 {[%clk 0:02:06]}  Nh5 {[%clk 0:01:23]} 13. Re1 {[%clk 0:02:03]}  Qd8 {[%clk 0:01:23]} 14. Bb2 {[%clk 0:01:59]}  Nf4 {[%clk 0:01:16]} 15. Ne4 {[%clk 0:01:54]}  Bc7 {[%clk 0:01:08]} 16. Rad1 {[%clk 0:01:53]}  Nf6 {[%clk 0:01:01]} 17. Ng3 {[%clk 0:01:40]}  N6d5 {[%clk 0:00:53]} 18. Ne5 {[%clk 0:01:38]}  Be6 {[%clk 0:00:32]} 19. Qe4 {[%clk 0:01:23]}  Ba5 {[%clk 0:00:22]} 20. Rf1 {[%clk 0:01:17]}  Ng6 {[%clk 0:00:18]} 21. f4 {[%clk 0:01:13]}  Qh4 {[%clk 0:00:07]} 22. Ne2 {[%clk 0:01:03]}  Nge7 {[%clk 0:00:03]} 23. Qf3 {[%clk 0:00:52]}  Bf5 {[%clk 0:00:03]} 24. g4 {[%clk 0:00:47]}  Bd7 {[%clk 0:00:03]} 25. f5 {[%clk 0:00:44]}  Bc8 {[%clk 0:00:02]} 26. a3 {[%clk 0:00:29]}  Bc7 {[%clk 0:00:03]} 27. b4 {[%clk 0:00:27]}  f6 {[%clk 0:00:03]} 28. Nd3 {[%clk 0:00:27]}  Kh8 {[%clk 0:00:03]} 29. Nc5 {[%clk 0:00:21]}  Ng8 {[%clk 0:00:03]} 30. Bxd5 {[%clk 0:00:19]}  cxd5 {[%clk 0:00:04]} 31. Rde1 {[%clk 0:00:18]}  Re8 {[%clk 0:00:04]} 32. Kg2 {[%clk 0:00:17]}  b6 {[%clk 0:00:03]} 33. Ne6 {[%clk 0:00:16]}  Bxe6 {[%clk 0:00:03]} 34. fxe6 {[%clk 0:00:17]}  Rxe6 {[%clk 0:00:03]} 35. Ng3 {[%clk 0:00:15]}  Rxe1 {[%clk 0:00:03]} 36. Rxe1 {[%clk 0:00:16]}  Nh6 {[%clk 0:00:03]} 37. Re7 {[%clk 0:00:14]}  Bd6 {[%clk 0:00:02]} 38. Rd7 {[%clk 0:00:14]}  Bf8 {[%clk 0:00:02]} 39. Qxd5 {[%clk 0:00:13]}  Re8 {[%clk 0:00:02]} 40. Rd8 {[%clk 0:00:12]}  Rxd8 {[%clk 0:00:02]} 41. Qxd8 {[%clk 0:00:13]}  Kg8 {[%clk 0:00:03]} 42. Qd5+ {[%clk 0:00:13]}  Kh8 {[%clk 0:00:04]} 43. Bc1 {[%clk 0:00:13]}  Ng8 {[%clk 0:00:03]} 44. Bf4 {[%clk 0:00:12]}  Ne7 {[%clk 0:00:01]} 45. Qf7 {[%clk 0:00:12]}  Ng6 {[%clk 0:00:02]} 46. Bc7 {[%clk 0:00:10]}  h6 {[%clk 0:00:02]} 47. Qxg6 {[%clk 0:00:09]}  a5 {[%clk 0:00:01]} 48. Qe8 {[%clk 0:00:07]}  Kg8 {[%clk 0:00:01]} 49. Bd6 {[%clk 0:00:07]} 1-0


[Site "https://www.chess.com"]

[Event "Titled Tuesday Blitz August 24 2021"]
[White "Nakamura, Hikaru"]
[Black "Zierk, Steven"]
[WhiteFideId "2016192"]
[BlackFideId "2034255"]
[WhiteElo "2900"]
[BlackElo "2494"]
[Result "1-0"]
[Round "08"]
[TimeControl "180+1"]
[Date "2021.08.24"]
[WhiteClock "0:00:12"]
[BlackClock "0:00:07"]

1. e4 {[%clk 0:03:00]}  c5 {[%clk 0:02:59]} 2. Nf3 {[%clk 0:02:59]}  Nc6 {[%clk 0:02:59]} 3. c3 {[%clk 0:02:59]}  Nf6 {[%clk 0:02:59]} 4. Bd3 {[%clk 0:03:00]}  d6 {[%clk 0:02:58]} 5. Bc2 {[%clk 0:02:58]}  g6 {[%clk 0:02:56]} 6. h3 {[%clk 0:02:54]}  e5 {[%clk 0:02:47]} 7. a3 {[%clk 0:02:50]}  Bg7 {[%clk 0:02:46]} 8. b4 {[%clk 0:02:49]}  O-O {[%clk 0:02:42]} 9. O-O {[%clk 0:02:46]}  d5 {[%clk 0:02:38]} 10. d3 {[%clk 0:02:41]}  c4 {[%clk 0:02:07]} 11. dxc4 {[%clk 0:02:22]}  dxc4 {[%clk 0:01:53]} 12. Qe2 {[%clk 0:02:19]}  Be6 {[%clk 0:01:53]} 13. Ng5 {[%clk 0:02:19]}  Qe7 {[%clk 0:01:51]} 14. a4 {[%clk 0:02:17]}  a6 {[%clk 0:01:38]} 15. Na3 {[%clk 0:02:09]}  b5 {[%clk 0:01:35]} 16. Be3 {[%clk 0:02:07]}  Rab8 {[%clk 0:01:26]} 17. Bc5 {[%clk 0:02:06]}  Qe8 {[%clk 0:01:24]} 18. axb5 {[%clk 0:02:06]}  axb5 {[%clk 0:01:23]} 19. Bxf8 {[%clk 0:02:06]}  Bxf8 {[%clk 0:01:24]} 20. Nxe6 {[%clk 0:02:06]}  Qxe6 {[%clk 0:01:25]} 21. Nb1 {[%clk 0:02:03]}  h5 {[%clk 0:01:20]} 22. Nd2 {[%clk 0:02:03]}  Bh6 {[%clk 0:01:18]} 23. Nf3 {[%clk 0:02:03]}  Ne8 {[%clk 0:01:13]} 24. Rfd1 {[%clk 0:02:01]}  Nc7 {[%clk 0:01:13]} 25. h4 {[%clk 0:01:57]}  Qe7 {[%clk 0:01:10]} 26. g3 {[%clk 0:01:56]}  Kg7 {[%clk 0:01:11]} 27. Kg2 {[%clk 0:01:47]}  f6 {[%clk 0:01:09]} 28. Qf1 {[%clk 0:01:44]}  Qe6 {[%clk 0:01:09]} 29. Qh1 {[%clk 0:01:44]}  Kf7 {[%clk 0:01:08]} 30. Qh3 {[%clk 0:01:43]}  Ke7 {[%clk 0:01:04]} 31. Qxe6+ {[%clk 0:01:43]}  Kxe6 {[%clk 0:01:05]} 32. Ng1 {[%clk 0:01:42]}  f5 {[%clk 0:01:02]} 33. Ne2 {[%clk 0:01:36]}  f4 {[%clk 0:01:00]} 34. gxf4 {[%clk 0:01:30]}  exf4 {[%clk 0:00:54]} 35. Nd4+ {[%clk 0:01:30]}  Nxd4 {[%clk 0:00:54]} 36. cxd4 {[%clk 0:01:31]}  Bf8 {[%clk 0:00:53]} 37. Ra7 {[%clk 0:01:29]}  Kd7 {[%clk 0:00:51]} 38. e5 {[%clk 0:01:27]}  Bxb4 {[%clk 0:00:49]} 39. Kf3 {[%clk 0:01:27]}  Kc6 {[%clk 0:00:46]} 40. Bxg6 {[%clk 0:01:26]}  Kb6 {[%clk 0:00:46]} 41. Raa1 {[%clk 0:01:25]}  Bc3 {[%clk 0:00:46]} 42. Rac1 {[%clk 0:01:22]}  b4 {[%clk 0:00:43]} 43. d5 {[%clk 0:01:21]}  Nb5 {[%clk 0:00:39]} 44. d6 {[%clk 0:01:20]}  Kc5 {[%clk 0:00:30]} 45. d7 {[%clk 0:01:15]}  Rd8 {[%clk 0:00:30]} 46. e6 {[%clk 0:01:14]}  Bf6 {[%clk 0:00:30]} 47. Ke4 {[%clk 0:01:06]}  b3 {[%clk 0:00:27]} 48. Kf5 {[%clk 0:00:47]}  Bxh4 {[%clk 0:00:25]} 49. Bxh5 {[%clk 0:00:47]}  b2 {[%clk 0:00:23]} 50. Rb1 {[%clk 0:00:40]}  c3 {[%clk 0:00:20]} 51. Rh1 {[%clk 0:00:37]}  Be7 {[%clk 0:00:19]} 52. Bd1 {[%clk 0:00:37]}  Nd4+ {[%clk 0:00:19]} 53. Ke5 {[%clk 0:00:37]}  Bd6+ {[%clk 0:00:18]} 54. Ke4 {[%clk 0:00:38]}  Nxe6 {[%clk 0:00:18]} 55. Rh5+ {[%clk 0:00:30]}  Kb4 {[%clk 0:00:17]} 56. Kd5 {[%clk 0:00:30]}  Ng7 {[%clk 0:00:17]} 57. Rh7 {[%clk 0:00:18]}  Bf8 {[%clk 0:00:14]} 58. Kc6 {[%clk 0:00:17]}  Ne6 {[%clk 0:00:12]} 59. Rh5 {[%clk 0:00:13]}  Bg7 {[%clk 0:00:09]} 60. Rb5+ {[%clk 0:00:12]}  Ka3 {[%clk 0:00:07]} 61. Ra5+ {[%clk 0:00:11]}  Kb4 {[%clk 0:00:07]} 62. Ra4# {[%clk 0:00:12]} 1-0


[Site "https://www.chess.com"]

[Event "Titled Tuesday Blitz August 24 2021"]
[White "Omariev, Maksim"]
[Black "Castellanos Rodriguez, Renier"]
[WhiteFideId "4193423"]
[BlackFideId "3404650"]
[WhiteElo "2439"]
[BlackElo "2612"]
[Result "0-1"]
[Round "08"]
[TimeControl "180+1"]
[Date "2021.08.24"]
[WhiteClock "0:00:01"]
[BlackClock "0:00:59"]

1. e4 {[%clk 0:03:00]}  c5 {[%clk 0:03:00]} 2. Nf3 {[%clk 0:03:01]}  d6 {[%clk 0:03:00]} 3. d4 {[%clk 0:03:01]}  cxd4 {[%clk 0:03:01]} 4. Nxd4 {[%clk 0:03:02]}  Nf6 {[%clk 0:03:02]} 5. Nc3 {[%clk 0:03:02]}  a6 {[%clk 0:03:02]} 6. h3 {[%clk 0:03:02]}  e6 {[%clk 0:03:00]} 7. g4 {[%clk 0:03:03]}  h6 {[%clk 0:03:00]} 8. Bg2 {[%clk 0:03:03]}  Be7 {[%clk 0:02:59]} 9. Be3 {[%clk 0:03:03]}  g5 {[%clk 0:02:58]} 10. Qe2 {[%clk 0:03:00]}  Nbd7 {[%clk 0:02:56]} 11. O-O-O {[%clk 0:03:01]}  Ne5 {[%clk 0:02:54]} 12. f4 {[%clk 0:02:53]}  gxf4 {[%clk 0:02:54]} 13. Bxf4 {[%clk 0:02:54]}  Nfd7 {[%clk 0:02:51]} 14. Kb1 {[%clk 0:02:47]}  b5 {[%clk 0:02:49]} 15. Nf3 {[%clk 0:02:23]}  Qc7 {[%clk 0:02:45]} 16. Qd2 {[%clk 0:02:08]}  Nc4 {[%clk 0:02:41]} 17. Qc1 {[%clk 0:02:07]}  Bb7 {[%clk 0:02:30]} 18. Nd2 {[%clk 0:01:52]}  Nce5 {[%clk 0:02:15]} 19. Nb3 {[%clk 0:01:48]}  b4 {[%clk 0:02:14]} 20. Ne2 {[%clk 0:01:44]}  h5 {[%clk 0:02:13]} 21. gxh5 {[%clk 0:01:40]}  Rxh5 {[%clk 0:02:10]} 22. Ng3 {[%clk 0:01:38]}  Rh8 {[%clk 0:02:08]} 23. h4 {[%clk 0:01:33]}  a5 {[%clk 0:02:06]} 24. h5 {[%clk 0:01:33]}  a4 {[%clk 0:02:06]} 25. Nd4 {[%clk 0:01:32]}  a3 {[%clk 0:01:46]} 26. b3 {[%clk 0:01:23]}  Rc8 {[%clk 0:01:41]} 27. h6 {[%clk 0:01:18]}  Rh7 {[%clk 0:01:40]} 28. Nh5 {[%clk 0:01:12]}  Nc5 {[%clk 0:01:12]} 29. Rde1 {[%clk 0:00:26]}  Qb6 {[%clk 0:01:09]} 30. Qd2 {[%clk 0:00:24]}  Ncd3 {[%clk 0:01:06]} 31. Ng7+ {[%clk 0:00:12]}  Kd7 {[%clk 0:01:06]} 32. cxd3 {[%clk 0:00:06]}  Qxd4 {[%clk 0:01:05]} 33. Rh3 {[%clk 0:00:01]}  Bf6 {[%clk 0:00:59]} 0-1


[Site "https://www.chess.com"]

[Event "Titled Tuesday Blitz August 24 2021"]
[White "Palchuk, Andrii"]
[Black "Bilan, Danila"]
[WhiteFideId "14176688"]
[BlackFideId "24161918"]
[WhiteElo "2320"]
[BlackElo "2164"]
[Result "0-1"]
[Round "08"]
[TimeControl "180+1"]
[Date "2021.08.24"]
[WhiteClock "0:00:15"]
[BlackClock "0:00:26"]

1. e4 {[%clk 0:03:00]}  c6 {[%clk 0:02:59]} 2. d4 {[%clk 0:03:00]}  d5 {[%clk 0:03:00]} 3. Nd2 {[%clk 0:03:00]}  dxe4 {[%clk 0:03:00]} 4. Nxe4 {[%clk 0:03:01]}  Bf5 {[%clk 0:03:01]} 5. Ng3 {[%clk 0:03:01]}  Bg6 {[%clk 0:03:02]} 6. Nf3 {[%clk 0:03:01]}  Nd7 {[%clk 0:02:58]} 7. h4 {[%clk 0:03:02]}  h6 {[%clk 0:02:58]} 8. h5 {[%clk 0:03:02]}  Bh7 {[%clk 0:02:59]} 9. Bd3 {[%clk 0:03:02]}  Bxd3 {[%clk 0:02:59]} 10. Qxd3 {[%clk 0:03:03]}  Qc7 {[%clk 0:03:00]} 11. Bd2 {[%clk 0:03:03]}  e6 {[%clk 0:03:01]} 12. O-O-O {[%clk 0:03:03]}  Bd6 {[%clk 0:03:01]} 13. Ne4 {[%clk 0:03:03]}  Ngf6 {[%clk 0:03:02]} 14. Nxd6+ {[%clk 0:03:02]}  Qxd6 {[%clk 0:03:03]} 15. Qe2 {[%clk 0:03:00]}  Qd5 {[%clk 0:03:01]} 16. Kb1 {[%clk 0:02:59]}  O-O-O {[%clk 0:02:57]} 17. Ne5 {[%clk 0:02:39]}  Nxe5 {[%clk 0:02:43]} 18. dxe5 {[%clk 0:02:38]}  Qe4 {[%clk 0:02:34]} 19. Qxe4 {[%clk 0:01:52]}  Nxe4 {[%clk 0:02:35]} 20. Be3 {[%clk 0:01:53]}  b6 {[%clk 0:02:33]} 21. g4 {[%clk 0:01:46]}  Rd5 {[%clk 0:01:42]} 22. Rxd5 {[%clk 0:01:07]}  cxd5 {[%clk 0:01:28]} 23. Rd1 {[%clk 0:01:03]}  Rd8 {[%clk 0:01:19]} 24. Rd4 {[%clk 0:01:01]}  Nc5 {[%clk 0:01:13]} 25. c4 {[%clk 0:00:55]}  Kc7 {[%clk 0:00:55]} 26. Rf4 {[%clk 0:00:29]}  Rd7 {[%clk 0:00:55]} 27. f3 {[%clk 0:00:19]}  Nd3 {[%clk 0:00:52]} 28. Rd4 {[%clk 0:00:19]}  Nxe5 {[%clk 0:00:50]} 29. cxd5 {[%clk 0:00:19]}  Rxd5 {[%clk 0:00:49]} 30. Bf4 {[%clk 0:00:18]}  Kd6 {[%clk 0:00:41]} 31. Re4 {[%clk 0:00:18]}  f6 {[%clk 0:00:37]} 32. Kc2 {[%clk 0:00:17]}  Kc5 {[%clk 0:00:28]} 33. Bxe5 {[%clk 0:00:15]}  fxe5 {[%clk 0:00:28]} 34. Kc3 {[%clk 0:00:14]}  a5 {[%clk 0:00:27]} 35. a3 {[%clk 0:00:14]}  b5 {[%clk 0:00:23]} 36. b4+ {[%clk 0:00:13]}  axb4+ {[%clk 0:00:24]} 37. axb4+ {[%clk 0:00:14]}  Kd6 {[%clk 0:00:24]} 38. Re3 {[%clk 0:00:10]}  Rd4 {[%clk 0:00:24]} 39. Re1 {[%clk 0:00:09]}  Kd5 {[%clk 0:00:24]} 40. Re3 {[%clk 0:00:09]}  e4 {[%clk 0:00:21]} 41. f4 {[%clk 0:00:08]}  e5 {[%clk 0:00:20]} 42. f5 {[%clk 0:00:06]}  Kd6 {[%clk 0:00:20]} 43. Rg3 {[%clk 0:00:06]}  Ke7 {[%clk 0:00:19]} 44. g5 {[%clk 0:00:06]}  Rd3+ {[%clk 0:00:17]} 45. Rxd3 {[%clk 0:00:06]}  exd3 {[%clk 0:00:18]} 46. Kxd3 {[%clk 0:00:07]}  hxg5 {[%clk 0:00:19]} 47. Ke3 {[%clk 0:00:06]}  Kf6 {[%clk 0:00:19]} 48. Ke4 {[%clk 0:00:06]}  g4 {[%clk 0:00:20]} 49. Kd5 {[%clk 0:00:06]}  Kxf5 {[%clk 0:00:20]} 50. Kc5 {[%clk 0:00:06]}  g3 {[%clk 0:00:20]} 51. Kxb5 {[%clk 0:00:07]}  g2 {[%clk 0:00:21]} 52. Kc6 {[%clk 0:00:07]}  g1=Q {[%clk 0:00:22]} 53. b5 {[%clk 0:00:08]}  Qb1 {[%clk 0:00:20]} 54. b6 {[%clk 0:00:09]}  e4 {[%clk 0:00:21]} 55. b7 {[%clk 0:00:10]}  e3 {[%clk 0:00:21]} 56. Kc7 {[%clk 0:00:11]}  e2 {[%clk 0:00:21]} 57. b8=Q {[%clk 0:00:12]}  Qxb8+ {[%clk 0:00:21]} 58. Kxb8 {[%clk 0:00:13]}  e1=Q {[%clk 0:00:22]} 59. h6 {[%clk 0:00:14]}  gxh6 {[%clk 0:00:22]} 60. Kc7 {[%clk 0:00:14]}  Qe6 {[%clk 0:00:23]} 61. Kd8 {[%clk 0:00:13]}  Qf7 {[%clk 0:00:23]} 62. Kc8 {[%clk 0:00:13]}  Ke6 {[%clk 0:00:24]} 63. Kd8 {[%clk 0:00:14]}  Kd6 {[%clk 0:00:25]} 64. Kc8 {[%clk 0:00:15]}  Kc6 {[%clk 0:00:26]} 65. Kb8 {[%clk 0:00:15]}  Qb7# {[%clk 0:00:26]} 0-1


[Site "https://www.chess.com"]